[Event "Nové Hrady - Open"]
[Site "Nové Hrady, Czech Republic"]
[Date "2023.08.14"]
[Round "2.2"]
[White "Urban, Zdeněk"]
[Black "Garabik, Marek"]
[Result "1-0"]
[TimeControl "2x90min+30s"]
[WhiteFideId "312754"]
[BlackFideId "23717742"]
[WhiteElo "2118"]
[BlackElo "1738"]

1. c4 {[%clk 01:29:27]} {[%emt 00:01:31]} Nf6 {[%clk 01:30:00]} {[%emt
00:01:02]} 2. Nc3 {[%clk 01:29:51]} {[%emt 00:00:05]} e6 {[%clk 01:30:24]}
{[%emt 00:00:06]} 3. e4 {[%clk 01:29:57]} {[%emt 00:00:23]} d5 {[%clk
01:30:02]} {[%emt 00:00:53]} 4. e5 {[%clk 01:30:24]} {[%emt 00:00:03]} Nfd7
{[%clk 01:29:18]} {[%emt 00:01:15]} 5. f4 {[%clk 01:30:49]} {[%emt 00:00:03]}
c5 {[%clk 01:25:22]} {[%emt 00:04:27]} 6. Nf3 {[%clk 01:30:26]} {[%emt
00:00:51]} Nb6 {[%clk 01:24:56]} {[%emt 00:00:58]} 7. d3 {[%clk 01:29:20]}
{[%emt 00:01:35]} Nc6 {[%clk 01:23:39]} {[%emt 00:01:48]} 8. Be2 {[%clk
01:27:55]} {[%emt 00:01:54]} Be7 {[%clk 01:22:49]} {[%emt 00:01:22]} 9. O-O
{[%clk 01:27:59]} {[%emt 00:00:25]} a6 {[%clk 01:19:02]} {[%emt 00:04:17]} 10.
b3 {[%clk 01:27:13]} {[%emt 00:01:16]} f5 {[%clk 01:14:08]} {[%emt 00:05:25]}
11. Kh1 {[%clk 01:22:23]} {[%emt 00:05:19]} d4 {[%clk 01:13:23]} {[%emt
00:01:16]} 12. Nb1 {[%clk 01:22:19]} {[%emt 00:00:32]} Bd7 {[%clk 01:11:24]}
{[%emt 00:02:31]} 13. Bd2 {[%clk 01:21:53]} {[%emt 00:00:55]} Qc7 {[%clk
01:09:25]} {[%emt 00:02:29]} 14. a4 {[%clk 01:20:02]} {[%emt 00:02:21]} O-O-O
{[%clk 01:03:11]} {[%emt 00:06:45]} 15. Qe1 {[%clk 01:20:18]} {[%emt 00:00:13]}
Rdg8 {[%clk 01:00:06]} {[%emt 00:03:36]} 16. Na3 {[%clk 01:18:32]} {[%emt
00:02:15]} h6 {[%clk 00:57:47]} {[%emt 00:02:50]} 17. a5 {[%clk 01:14:25]}
{[%emt 00:04:37]} Na8 {[%clk 00:58:13]} {[%emt 00:00:04]} 18. b4 {[%clk
01:14:25]} {[%emt 00:00:29]} g5 {[%clk 00:41:35]} {[%emt 00:17:17]} 19. b5
{[%clk 01:13:57]} {[%emt 00:00:57]} Nb8 {[%clk 00:41:53]} {[%emt 00:00:12]} 20.
Qb1 {[%clk 01:08:57]} {[%emt 00:05:30]} b6 {[%clk 00:38:14]} {[%emt 00:04:09]}
21. bxa6 {[%clk 01:08:11]} {[%emt 00:01:16]} Nxa6 {[%clk 00:36:08]} {[%emt
00:02:36]} 22. Nb5 {[%clk 01:07:03]} {[%emt 00:01:37]} Qb8 {[%clk 00:28:08]}
{[%emt 00:08:31]} 23. axb6 {[%clk 01:05:29]} {[%emt 00:02:03]} Qxb6 {[%clk
00:28:36]} {[%emt 00:00:03]} 24. Nbxd4 {[%clk 00:59:47]} {[%emt 00:06:12]} N6c7
{[%clk 00:24:48]} {[%emt 00:04:19]} 25. Nb5 {[%clk 00:59:14]} {[%emt 00:01:03]}
Bxb5 {[%clk 00:24:16]} {[%emt 00:01:01]} 26. cxb5 {[%clk 00:59:40]} {[%emt
00:00:04]} Kd7 {[%clk 00:24:27]} {[%emt 00:00:19]} 27. d4 {[%clk 00:58:28]}
{[%emt 00:01:42]} g4 {[%clk 00:24:02]} {[%emt 00:00:55]} 28. Ba5 {[%clk
00:58:08]} {[%emt 00:00:50]} Qb7 {[%clk 00:24:10]} {[%emt 00:00:22]} 29. dxc5
{[%clk 00:58:23]} {[%emt 00:00:14]} Bxc5 {[%clk 00:23:00]} {[%emt 00:01:41]} 30.
Rd1+ {[%clk 00:57:37]} {[%emt 00:01:15]} Ke7 {[%clk 00:21:16]} {[%emt
00:02:16]} 31. Qc1 {[%clk 00:56:36]} {[%emt 00:01:29]} Bf2 {[%clk 00:18:17]}
{[%emt 00:03:31]} 32. Nd4 {[%clk 00:55:56]} {[%emt 00:01:09]} Bxd4 {[%clk
00:13:33]} {[%emt 00:05:14]} 33. Rxd4 {[%clk 00:56:08]} {[%emt 00:00:18]} Rb8
{[%clk 00:14:01]} {[%emt 00:00:02]} 34. Qc5+ {[%clk 00:56:06]} {[%emt
00:00:31]} Ke8 {[%clk 00:13:29]} {[%emt 00:01:03]} 35. Bb4 {[%clk 00:50:41]}
{[%emt 00:05:54]} Nd5 {[%clk 00:12:20]} {[%emt 00:01:39]} 36. Ra7 {[%clk
00:50:48]} {[%emt 00:00:23]} Qc8 {[%clk 00:11:38]} {[%emt 00:01:13]} 37. Re7+
{[%clk 00:50:45]} {[%emt 00:00:32]} 1-0

[Event "Nové Hrady - Open"]
[Site "Nové Hrady, Czech Republic"]
[Date "2023.08.14"]
[Round "2.3"]
[White "Šedivý, Karel"]
[Black "Babula, Milan"]
[Result "0-1"]
[TimeControl "2x90min+30s"]
[WhiteFideId "359653"]
[BlackFideId "300632"]
[WhiteElo "1583"]
[BlackElo "2087"]

1. d4 {[%clk 01:30:55]} {[%emt 00:00:05]} Nf6 {[%clk 01:30:54]} {[%emt
00:00:06]} 2. c4 {[%clk 01:31:11]} {[%emt 00:00:14]} g6 {[%clk 01:31:21]}
{[%emt 00:00:04]} 3. Nf3 {[%clk 01:31:17]} {[%emt 00:00:23]} Bg7 {[%clk
01:31:49]} 4. Nc3 {[%clk 01:31:19]} {[%emt 00:00:30]} O-O {[%clk 01:32:17]}
{[%emt 00:00:02]} 5. e4 {[%clk 01:31:15]} {[%emt 00:00:34]} d6 {[%clk
01:32:42]} {[%emt 00:00:06]} 6. Be2 {[%clk 01:31:07]} {[%emt 00:00:37]} e5
{[%clk 01:32:51]} {[%emt 00:00:21]} 7. dxe5 {[%clk 01:29:47]} {[%emt 00:01:49]}
dxe5 {[%clk 01:33:20]} 8. Qxd8 {[%clk 01:29:22]} {[%emt 00:00:57]} Rxd8 {[%clk
01:33:49]} 9. Bg5 {[%clk 01:29:20]} {[%emt 00:00:33]} Re8 {[%clk 01:32:58]}
{[%emt 00:01:21]} 10. Bxf6 {[%clk 01:27:58]} {[%emt 00:01:51]} Bxf6 {[%clk
01:33:26]} {[%emt 00:00:02]} 11. Nd5 {[%clk 01:27:41]} {[%emt 00:00:48]} Bd8
{[%clk 01:33:48]} {[%emt 00:00:08]} 12. O-O-O {[%clk 01:27:41]} {[%emt
00:00:30]} c6 {[%clk 01:31:23]} {[%emt 00:02:56]} 13. Nc3 {[%clk 01:22:14]}
{[%emt 00:05:56]} Bb6 {[%clk 01:30:52]} {[%emt 00:01:01]} 14. c5 {[%clk
01:17:31]} {[%emt 00:05:13]} Bxc5 {[%clk 01:30:07]} {[%emt 00:01:16]} 15. Nxe5
{[%clk 01:16:59]} {[%emt 00:01:01]} Be6 {[%clk 01:16:21]} {[%emt 00:14:15]} 16.
Bc4 {[%clk 01:12:13]} {[%emt 00:05:16]} Bxc4 {[%clk 00:55:10]} {[%emt
00:21:42]} 17. Nxc4 {[%emt 00:00:56]} b5 {[%emt 00:00:01]} 18. Nd6 {[%emt
00:04:26]} Re6 {[%clk 00:55:45]} {[%emt 00:00:22]} 19. Nb7 {[%clk 01:04:43]}
{[%emt 00:03:48]} Bb6 {[%clk 00:49:07]} {[%emt 00:07:08]} 20. f3 {[%clk
00:53:07]} {[%emt 00:12:05]} Re7 {[%clk 00:44:16]} {[%emt 00:05:22]} 21. Nd8
{[%clk 00:50:36]} {[%emt 00:03:01]} Na6 {[%clk 00:38:16]} {[%emt 00:06:30]} 22.
Nxc6 {[%clk 00:48:10]} {[%emt 00:02:55]} Rc7 {[%clk 00:38:43]} {[%emt
00:00:03]} 23. Rd6 {[%clk 00:38:22]} {[%emt 00:10:18]} Rac8 {[%clk 00:38:25]}
{[%emt 00:00:48]} 24. Nd5 {[%clk 00:31:32]} {[%emt 00:07:20]} Rxc6+ {[%clk
00:38:49]} {[%emt 00:00:07]} 25. Kb1 {[%clk 00:31:56]} {[%emt 00:00:05]} Rxd6
{[%clk 00:38:18]} {[%emt 00:01:02]} 26. Ne7+ {[%clk 00:32:07]} {[%emt
00:00:18]} Kf8 {[%clk 00:37:48]} {[%emt 00:01:00]} 27. Nxc8 {[%clk 00:32:27]}
{[%emt 00:00:11]} Rd2 {[%clk 00:38:11]} {[%emt 00:00:07]} 28. Nxb6 {[%clk
00:32:25]} {[%emt 00:00:31]} axb6 {[%clk 00:38:39]} {[%emt 00:00:02]} 29. Rg1
{[%clk 00:30:59]} {[%emt 00:01:55]} Nc5 {[%clk 00:38:43]} {[%emt 00:00:27]} 30.
Kc1 {[%clk 00:31:08]} {[%emt 00:00:20]} Rf2 {[%clk 00:39:01]} {[%emt 00:00:14]}
31. b4 {[%clk 00:31:04]} {[%emt 00:00:33]} Nd3+ {[%clk 00:39:18]} {[%emt
00:00:14]} 0-1

[Event "Nové Hrady - Open"]
[Site "Nové Hrady, Czech Republic"]
[Date "2023.08.14"]
[Round "2.4"]
[White "Bosák, Jan"]
[Black "Berkovec, Jakub"]
[Result "1-0"]
[TimeControl "2x90min+30s"]
[WhiteFideId "314692"]
[BlackFideId "23727080"]
[WhiteElo "2082"]
[BlackElo "1288"]

1. c4 {[%clk 01:30:57]} {[%emt 00:00:03]} c5 {[%clk 01:30:28]} {[%emt
00:00:32]} 2. Nf3 {[%clk 01:30:56]} {[%emt 00:00:31]} Nc6 {[%clk 01:29:50]}
{[%emt 00:01:09]} 3. Nc3 {[%clk 01:30:36]} {[%emt 00:00:48]} g6 {[%clk
01:29:30]} {[%emt 00:00:51]} 4. e3 {[%clk 01:30:25]} {[%emt 00:00:40]} Bg7
{[%clk 01:28:10]} {[%emt 00:01:50]} 5. d4 {[%clk 01:29:49]} {[%emt 00:01:07]}
cxd4 {[%clk 01:27:16]} {[%emt 00:01:24]} 6. exd4 {[%clk 01:30:09]} {[%emt
00:00:10]} Nf6 {[%clk 01:26:27]} {[%emt 00:01:19]} 7. d5 {[%clk 01:29:04]}
{[%emt 00:01:35]} Nb8 {[%clk 01:25:13]} {[%emt 00:01:44]} 8. Be3 {[%clk
01:26:32]} {[%emt 00:03:01]} d6 {[%clk 01:24:03]} {[%emt 00:01:41]} 9. Be2
{[%clk 01:25:34]} {[%emt 00:01:27]} O-O {[%clk 01:23:15]} {[%emt 00:01:18]} 10.
O-O {[%clk 01:25:08]} {[%emt 00:00:57]} Bd7 {[%clk 01:21:27]} {[%emt 00:02:19]}
11. Rc1 {[%clk 01:17:04]} {[%emt 00:08:33]} Na6 {[%clk 01:19:28]} {[%emt
00:02:29]} 12. Nd4 {[%clk 01:15:19]} {[%emt 00:02:14]} Nc5 {[%clk 01:10:20]}
{[%emt 00:09:38]} 13. b4 {[%clk 01:10:55]} {[%emt 00:04:55]} Na6 {[%clk
01:08:47]} {[%emt 00:02:03]} 14. a3 {[%clk 01:09:17]} {[%emt 00:02:07]} b6
{[%clk 01:06:46]} {[%emt 00:02:32]} 15. Nc6 {[%clk 01:05:01]} {[%emt 00:04:46]}
Bxc6 {[%clk 01:05:06]} {[%emt 00:02:10]} 16. dxc6 {[%clk 01:05:23]} {[%emt
00:00:08]} Rc8 {[%clk 01:03:39]} {[%emt 00:01:57]} 17. c5 {[%clk 01:00:49]}
{[%emt 00:05:03]} Nb8 {[%clk 01:00:34]} {[%emt 00:03:36]} 18. cxb6 {[%clk
00:57:54]} {[%emt 00:03:32]} axb6 {[%clk 01:00:34]} {[%emt 00:00:31]} 19. b5
{[%clk 00:57:32]} {[%emt 00:00:52]} Nxc6 {[%clk 00:59:22]} {[%emt 00:01:42]} 20.
bxc6 {[%clk 00:57:35]} {[%emt 00:00:27]} Rxc6 {[%clk 00:59:29]} {[%emt
00:00:24]} 21. Bf3 {[%clk 00:55:11]} {[%emt 00:02:52]} Rc8 {[%clk 00:55:54]}
{[%emt 00:04:06]} 22. Qb3 {[%clk 00:53:27]} {[%emt 00:02:13]} Rb8 {[%clk
00:53:39]} {[%emt 00:02:46]} 23. Rb1 {[%clk 00:49:34]} {[%emt 00:04:21]} Nd7
{[%clk 00:52:38]} {[%emt 00:01:33]} 24. Nd5 {[%clk 00:49:04]} {[%emt 00:01:00]}
b5 {[%clk 00:48:22]} {[%emt 00:04:46]} 25. Nb4 {[%clk 00:45:27]} {[%emt
00:04:07]} Nc5 {[%clk 00:46:22]} {[%emt 00:02:30]} 26. Bxc5 {[%clk 00:44:30]}
{[%emt 00:01:27]} dxc5 {[%clk 00:46:43]} {[%emt 00:00:09]} 27. Nc6 {[%clk
00:44:48]} {[%emt 00:00:12]} Qc7 {[%clk 00:45:46]} {[%emt 00:01:27]} 28. Nxb8
{[%clk 00:44:32]} {[%emt 00:00:45]} Rxb8 {[%clk 00:46:09]} {[%emt 00:00:09]} 29.
Be2 {[%clk 00:41:53]} {[%emt 00:03:08]} b4 {[%clk 00:44:52]} {[%emt 00:01:47]}
30. axb4 {[%clk 00:40:38]} {[%emt 00:01:44]} cxb4 {[%clk 00:44:28]} {[%emt
00:00:55]} 31. Rfc1 {[%clk 00:38:46]} {[%emt 00:02:22]} Qd6 {[%clk 00:43:59]}
{[%emt 00:00:59]} 32. Bc4 {[%clk 00:37:35]} {[%emt 00:01:39]} e6 {[%clk
00:41:48]} {[%emt 00:02:43]} 33. Rd1 {[%clk 00:36:39]} {[%emt 00:01:24]} Qc7
{[%clk 00:41:13]} {[%emt 00:01:07]} 34. Qd3 {[%clk 00:36:04]} {[%emt 00:01:01]}
Bc3 {[%clk 00:39:53]} {[%emt 00:01:55]} 35. Bb3 {[%clk 00:34:33]} {[%emt
00:01:59]} Ra8 {[%clk 00:36:31]} {[%emt 00:03:53]} 36. Qb5 {[%clk 00:33:07]}
{[%emt 00:01:51]} Rb8 {[%clk 00:34:24]} {[%emt 00:02:42]} 37. Qd7 {[%clk
00:32:09]} {[%emt 00:01:27]} Qe5 {[%clk 00:33:41]} {[%emt 00:01:14]} 38. Qd6
{[%clk 00:30:03]} {[%emt 00:02:33]} Qxd6 {[%clk 00:32:53]} {[%emt 00:01:21]} 39.
Rxd6 {[%clk 00:30:27]} {[%emt 00:00:05]} Ra8 {[%clk 00:33:15]} {[%emt
00:00:09]} 40. Rd7 {[%clk 00:29:56]} {[%emt 00:00:57]} h5 {[%clk 00:33:03]}
{[%emt 00:00:46]} 41. Rb7 {[%clk 00:30:07]} {[%emt 00:00:18]} Rd8 {[%clk
00:33:17]} {[%emt 00:00:17]} 42. Rd1 {[%clk 00:30:06]} {[%emt 00:00:29]} 1-0

[Event "Nové Hrady - Open"]
[Site "Nové Hrady, Czech Republic"]
[Date "2023.08.14"]
[Round "2.8"]
[White "Matyska, Jiří"]
[Black "Mošnička, Jan"]
[Result "1-0"]
[TimeControl "2x90min+30s"]
[WhiteFideId "309370"]
[BlackFideId "329398"]
[WhiteElo "1852"]
[BlackElo "1784"]

1. d4 {[%clk 01:30:56]} {[%emt 00:00:03]} Nf6 {[%clk 01:30:35]} {[%emt
00:00:26]} 2. c4 {[%clk 01:31:17]} {[%emt 00:00:09]} e6 {[%clk 01:30:55]}
{[%emt 00:00:10]} 3. Nf3 {[%clk 01:31:22]} {[%emt 00:00:24]} b6 {[%clk
01:28:55]} {[%emt 00:02:31]} 4. g3 {[%clk 01:31:30]} {[%emt 00:00:21]} Bb7
{[%clk 01:29:19]} {[%emt 00:00:07]} 5. Bg2 {[%clk 01:31:55]} {[%emt 00:00:05]}
Be7 {[%clk 01:28:53]} {[%emt 00:00:56]} 6. O-O {[%clk 01:32:16]} {[%emt
00:00:08]} c5 {[%clk 01:28:55]} {[%emt 00:00:29]} 7. Nc3 {[%clk 01:31:59]}
{[%emt 00:00:47]} cxd4 {[%clk 01:28:39]} {[%emt 00:00:46]} 8. Qxd4 {[%clk
01:31:08]} {[%emt 00:01:21]} Nc6 {[%clk 01:28:24]} {[%emt 00:00:45]} 9. Qf4
{[%clk 01:31:29]} {[%emt 00:00:09]} O-O {[%clk 01:23:45]} {[%emt 00:05:09]} 10.
Rd1 {[%clk 01:31:30]} {[%emt 00:00:30]} Nh5 {[%clk 01:13:56]} {[%emt 00:10:18]}
11. Qd2 {[%clk 01:31:16]} {[%emt 00:00:43]} Nf6 {[%clk 01:10:45]} {[%emt
00:03:42]} 12. b3 {[%clk 01:29:50]} {[%emt 00:01:56]} Bb4 {[%clk 01:07:33]}
{[%emt 00:03:42]} 13. Qd3 {[%clk 01:27:45]} {[%emt 00:02:30]} Bxc3 {[%clk
01:04:02]} {[%emt 00:04:06]} 14. Qxc3 {[%clk 01:28:13]} {[%emt 00:00:02]} h6
{[%clk 01:03:30]} {[%emt 00:01:02]} 15. Bb2 {[%clk 01:24:51]} {[%emt 00:03:53]}
Ne7 {[%clk 00:57:56]} {[%emt 00:06:03]} 16. Ne5 {[%clk 01:23:50]} {[%emt
00:01:31]} Bxg2 {[%clk 00:57:47]} {[%emt 00:00:37]} 17. Nxd7 {[%clk 01:23:48]}
{[%emt 00:00:34]} Ned5 {[%clk 00:49:49]} {[%emt 00:08:28]} 18. Nxf6+ {[%clk
01:24:08]} {[%emt 00:00:09]} Qxf6 {[%clk 00:49:48]} {[%emt 00:00:31]} 19. Qxf6
{[%clk 01:23:23]} {[%emt 00:01:15]} Nxf6 {[%clk 00:48:29]} {[%emt 00:01:49]} 20.
Kxg2 {[%clk 01:23:45]} {[%emt 00:00:08]} Ne4 {[%clk 00:48:36]} {[%emt
00:00:24]} 21. f3 {[%clk 01:22:07]} {[%emt 00:02:07]} Nc5 {[%emt 00:01:34]} 22.
Ba3 {[%clk 01:21:00]} {[%emt 00:01:14]} Rfd8 {[%clk 00:46:53]} {[%emt
00:01:32]} 23. Kf2 {[%clk 01:21:14]} {[%emt 00:00:17]} f6 {[%clk 00:44:34]}
{[%emt 00:02:57]} 24. Ke1 {[%clk 01:21:19]} {[%emt 00:00:25]} Kf7 {[%clk
00:44:58]} {[%emt 00:00:07]} 25. Rxd8 {[%clk 01:21:34]} {[%emt 00:00:14]} Rxd8
{[%clk 00:45:17]} {[%emt 00:00:10]} 26. Rd1 {[%clk 01:21:58]} {[%emt 00:00:06]}
Rxd1+ {[%clk 00:43:53]} {[%emt 00:01:54]} 27. Kxd1 {[%clk 01:22:27]} Nb7 {[%clk
00:43:10]} {[%emt 00:00:15]} 28. Kd2 {[%clk 01:22:39]} {[%emt 00:01:18]} g6
{[%clk 00:42:04]} {[%emt 00:01:35]} 29. Kd3 {[%clk 01:22:52]} {[%emt 00:00:18]}
e5 {[%clk 00:41:53]} {[%emt 00:00:40]} 30. e4 {[%clk 01:19:22]} {[%emt
00:04:00]} h5 {[%clk 00:41:49]} {[%emt 00:00:34]} 31. c5 {[%clk 01:16:36]}
{[%emt 00:03:17]} Na5 {[%clk 00:31:32]} {[%emt 00:10:47]} 32. cxb6 {[%clk
01:16:31]} {[%emt 00:00:34]} axb6 {[%clk 00:30:58]} {[%emt 00:00:07]} 33. Bc1
{[%clk 01:13:06]} {[%emt 00:04:52]} Ke6 {[%clk 00:28:17]} {[%emt 00:03:11]} 34.
Be3 {[%clk 01:13:06]} {[%emt 00:00:31]} b5 {[%clk 00:28:29]} {[%emt 00:00:18]}
35. Bb6 {[%clk 01:12:59]} {[%emt 00:00:37]} Nc6 {[%clk 00:28:19]} {[%emt
00:00:40]} 36. a4 {[%clk 01:13:05]} {[%emt 00:00:24]} bxa4 {[%clk 00:28:14]}
{[%emt 00:00:34]} 37. bxa4 {[%clk 01:13:33]} f5 {[%emt 00:01:03]} 38. a5 {[%emt
00:00:11]} fxe4+ {[%clk 00:26:33]} {[%emt 00:01:00]} 39. fxe4 {[%clk 01:13:45]}
{[%emt 00:00:18]} Kd6 {[%clk 00:25:38]} {[%emt 00:01:24]} 40. Kc4 {[%clk
01:13:59]} {[%emt 00:00:16]} Nb8 {[%clk 00:24:10]} {[%emt 00:01:59]} 41. Kb5
{[%clk 01:13:54]} {[%emt 00:00:34]} 1-0

[Event "Nové Hrady - Open"]
[Site "Nové Hrady, Czech Republic"]
[Date "2023.08.14"]
[Round "2.9"]
[White "Hejda, Ondřej"]
[Black "Voršilka, Jiří"]
[Result "1/2-1/2"]
[TimeControl "2x90min+30s"]
[WhiteFideId "23713623"]
[BlackFideId "365149"]
[WhiteElo "1246"]
[BlackElo "1556"]

1. e4 {[%clk 01:30:52]} {[%emt 00:00:08]} e5 {[%clk 01:30:55]} {[%emt
00:00:06]} 2. Nf3 {[%clk 01:31:04]} {[%emt 00:00:17]} Nf6 {[%clk 01:31:15]}
{[%emt 00:00:10]} 3. Nc3 {[%clk 01:30:57]} {[%emt 00:00:37]} Nc6 {[%clk
01:31:36]} {[%emt 00:00:10]} 4. Bc4 {[%clk 01:31:01]} {[%emt 00:00:26]} Nxe4
{[%clk 01:31:49]} {[%emt 00:00:17]} 5. Nxe4 {[%clk 01:31:14]} {[%emt 00:00:17]}
d5 {[%clk 01:32:11]} {[%emt 00:00:08]} 6. Bxd5 {[%clk 01:31:35]} {[%emt
00:00:09]} Qxd5 {[%clk 01:32:34]} {[%emt 00:00:07]} 7. Nc3 {[%clk 01:32:00]}
{[%emt 00:00:05]} Qd8 {[%clk 01:32:13]} {[%emt 00:00:50]} 8. d3 {[%clk
01:29:53]} {[%emt 00:02:38]} Bd6 {[%clk 01:31:57]} {[%emt 00:00:45]} 9. Be3
{[%clk 01:28:05]} {[%emt 00:02:18]} O-O {[%clk 01:31:34]} {[%emt 00:00:53]} 10.
d4 {[%clk 01:25:00]} {[%emt 00:03:36]} exd4 {[%clk 01:30:34]} {[%emt 00:01:29]}
11. Nxd4 {[%clk 01:25:00]} {[%emt 00:00:30]} Nxd4 {[%clk 01:29:14]} {[%emt
00:01:50]} 12. Qxd4 {[%clk 01:23:57]} {[%emt 00:01:32]} c5 {[%clk 01:29:05]}
{[%emt 00:00:41]} 13. Qd3 {[%clk 01:22:18]} {[%emt 00:02:03]} Be6 {[%clk
01:28:28]} {[%emt 00:01:13]} 14. Ne4 {[%clk 01:19:15]} {[%emt 00:03:33]} Be7
{[%clk 01:27:46]} {[%emt 00:01:12]} 15. Nxc5 {[%clk 01:15:12]} {[%emt
00:04:31]} Qa5+ {[%clk 01:27:39]} {[%emt 00:00:38]} 16. Qc3 {[%clk 01:13:44]}
{[%emt 00:01:58]} Qxc3+ {[%clk 01:27:57]} {[%emt 00:00:14]} 17. bxc3 {[%clk
01:14:07]} {[%emt 00:00:06]} Bxc5 {[%clk 01:26:24]} {[%emt 00:02:02]} 18. Bxc5
{[%clk 01:14:13]} {[%emt 00:00:25]} Rfc8 {[%clk 01:26:45]} {[%emt 00:00:09]} 19.
Bd4 {[%clk 01:11:42]} {[%emt 00:03:01]} Bf5 {[%clk 01:24:35]} {[%emt 00:02:40]}
20. Rb1 {[%clk 01:07:39]} {[%emt 00:04:33]} b6 {[%clk 01:23:55]} {[%emt
00:01:10]} 21. Rc1 {[%clk 01:07:17]} {[%emt 00:00:52]} Re8+ {[%clk 01:23:18]}
{[%emt 00:01:07]} 22. Kd2 {[%clk 01:05:04]} {[%emt 00:02:42]} Rad8 {[%clk
01:23:11]} {[%emt 00:00:37]} 23. Rhe1 {[%clk 01:04:31]} {[%emt 00:01:02]} f6
{[%clk 01:22:37]} {[%emt 00:01:05]} 24. Rxe8+ {[%clk 01:03:51]} {[%emt
00:01:10]} 1/2-1/2

[Event "Nové Hrady - Open"]
[Site "Nové Hrady, Czech Republic"]
[Date "2023.08.15"]
[Round "3.1"]
[White "Žilavý, Jan"]
[Black "Bosák, Jan"]
[Result "1-0"]
[TimeControl "2x90min+30s"]
[WhiteFideId "350141"]
[BlackFideId "314692"]
[WhiteElo "2130"]
[BlackElo "2082"]

1. d4 {[%clk 01:30:55]} {[%emt 00:00:05]} Nf6 {[%clk 01:30:46]} {[%emt
00:00:14]} 2. c4 {[%clk 01:31:15]} {[%emt 00:00:09]} g6 {[%clk 01:31:08]}
{[%emt 00:00:10]} 3. Nc3 {[%clk 01:31:34]} {[%emt 00:00:10]} d5 {[%clk
01:31:28]} {[%emt 00:00:10]} 4. Nf3 {[%clk 01:31:50]} {[%emt 00:00:14]} Bg7
{[%clk 01:31:40]} {[%emt 00:00:18]} 5. Qb3 {[%clk 01:32:01]} {[%emt 00:00:19]}
dxc4 {[%clk 01:30:58]} {[%emt 00:01:12]} 6. Qxc4 {[%clk 01:32:23]} {[%emt
00:00:08]} O-O {[%clk 01:30:48]} {[%emt 00:00:40]} 7. e4 {[%clk 01:32:41]}
{[%emt 00:00:12]} a6 {[%clk 01:29:51]} {[%emt 00:01:29]} 8. e5 {[%clk
01:30:23]} {[%emt 00:02:46]} b5 {[%clk 01:28:37]} {[%emt 00:01:45]} 9. Qb3
{[%clk 01:30:19]} {[%emt 00:00:34]} Be6 {[%clk 01:27:49]} {[%emt 00:01:17]} 10.
Qa3 {[%clk 01:18:14]} {[%emt 00:12:35]} Nd5 {[%clk 01:26:54]} {[%emt 00:01:23]}
11. Bxb5 {[%clk 01:18:00]} {[%emt 00:00:46]} c5 {[%emt 00:11:42]} 12. Be3
{[%clk 00:58:15]} {[%emt 00:12:42]} Nb6 {[%clk 01:18:04]} {[%emt 00:05:41]} 13.
Be2 {[%clk 00:56:22]} {[%emt 00:02:23]} cxd4 {[%clk 01:16:54]} {[%emt
00:01:39]} 14. Nxd4 {[%clk 00:49:30]} {[%emt 00:07:23]} Bc4 {[%clk 01:08:57]}
{[%emt 00:08:27]} 15. Bf3 {[%clk 00:38:34]} {[%emt 00:11:26]} Ra7 {[%clk
01:06:20]} {[%emt 00:03:08]} 16. Rd1 {[%clk 00:36:51]} {[%emt 00:02:11]} Rd7
{[%clk 01:05:46]} {[%emt 00:01:05]} 17. Qc5 {[%clk 00:34:56]} {[%emt 00:02:25]}
Bd5 {[%clk 01:03:45]} {[%emt 00:02:31]} 18. Nxd5 {[%clk 00:25:08]} {[%emt
00:10:19]} Nxd5 {[%clk 01:03:41]} {[%emt 00:00:32]} 19. e6 {[%clk 00:24:21]}
{[%emt 00:01:19]} Nxe3 {[%clk 01:01:51]} {[%emt 00:02:20]} 20. exf7+ {[%clk
00:24:22]} {[%emt 00:00:28]} Rxf7 {[%clk 01:01:29]} {[%emt 00:00:52]} 21. fxe3
{[%clk 00:24:46]} {[%emt 00:00:06]} e5 {[%clk 00:50:23]} {[%emt 00:11:36]} 22.
Ne6 {[%clk 00:22:16]} {[%emt 00:03:00]} Rxd1+ {[%clk 00:49:49]} {[%emt
00:01:03]} 23. Bxd1 {[%clk 00:22:44]} {[%emt 00:00:03]} Qh4+ {[%clk 00:48:09]}
{[%emt 00:02:10]} 24. g3 {[%clk 00:21:17]} {[%emt 00:01:56]} Qf6 {[%clk
00:47:21]} {[%emt 00:01:15]} 25. Qc8+ {[%clk 00:16:56]} {[%emt 00:04:55]} Bf8
{[%clk 00:46:58]} {[%emt 00:00:53]} 26. Bb3 {[%clk 00:15:24]} {[%emt 00:02:03]}
Qf2+ {[%clk 00:45:04]} {[%emt 00:02:23]} 27. Kd1 {[%clk 00:15:53]} Qf3+ {[%clk
00:43:23]} {[%emt 00:02:11]} 28. Kd2 {[%clk 00:15:56]} {[%emt 00:00:28]} Qxh1
{[%clk 00:42:41]} {[%emt 00:01:12]} 29. Nxf8 {[%clk 00:16:02]} {[%emt
00:00:23]} Qg2+ {[%clk 00:41:56]} {[%emt 00:01:15]} 30. Kc3 {[%clk 00:15:22]}
{[%emt 00:01:11]} Qc6+ {[%clk 00:40:25]} {[%emt 00:02:01]} 31. Qxc6 {[%clk
00:15:46]} {[%emt 00:00:06]} Nxc6 {[%clk 00:40:45]} {[%emt 00:00:09]} 32. Nxh7
{[%clk 00:15:46]} {[%emt 00:00:30]} 1-0